bitfinex-derivatives/quotes_ETHF0:USTF0_20251031
["timestamp","ask_amount","ask_price","bid_price","bid_amount"]
[1761920636781,3.2078,3851.3,3850.4,3.2078]
[1761920637080,0.65161366,3851.2,3850.4,3.2078]
[1761920637282,0.65161366,3851.1,3850.4,3.2078]
[1761920637482,0.65161366,3851.0,3850.4,3.2078]
[1761920637682,0.65161366,3850.9,3850.4,3.2078]
[1761920637884,0.57039032,3850.8,3850.4,3.2078]
[1761920638081,0.57039032,3850.7,3850.4,3.2078]
[1761920638282,3.2078,3851.3,3850.4,3.2078]
[1761920638482,0.65157346,3851.2,3850.4,3.2078]
[1761920638781,0.65157346,3851.1,3850.4,3.2078]
[1761920638981,0.65157346,3851.0,3850.4,3.2078]
[1761920639179,0.65157346,3850.9,3850.4,3.2078]
[1761920639483,0.57035122,3850.8,3850.4,3.2078]
[1761920639782,3.2078,3851.3,3850.4,3.2078]
[1761920639982,0.65150295,3851.2,3850.4,3.2078]
[1761920640189,0.65150295,3851.1,3850.4,3.67547]
[1761920640382,0.57028291,3851.0,3850.9,0.46762]
[1761920640576,3.2078,3852.1,3850.9,1.16904]
[1761920640776,0.08120279,3852.0,3851.5,3.67534]
[1761920640985,3.2078,3852.6,3851.5,3.67534]
[1761920641179,0.65124669,3852.5,3851.5,3.67534]
[1761920641375,0.57005333,3852.4,3851.5,3.2078]
[1761920641681,0.65125063,3852.3,3851.5,3.2078]
[1761920641877,0.65125063,3852.2,3851.5,3.2078]
[1761920642081,3.85905339,3852.1,3851.0,3.2078]
[1761920642274,0.00275824,3852.4,3851.8,3.2078]
[1761920642491,0.00275824,3852.4,3851.5,1.16886]
[1761920642492,0.00275824,3852.4,3852.2,3.67525]
[1761920642690,0.00275824,3852.4,3852.2,3.67744819]
[1761920642885,3.2078,3853.8,3852.5,0.46741]
[1761920643182,0.65013941,3853.7,3852.2,0.00219819]
[1761920643384,0.65013941,3853.6,3852.7,0.4674]
[1761920643693,0.56820973,3853.5,3852.9,3.2078]
[1761920643882,0.00330989,3853.5,3852.9,3.2078]
[1761920644585,0.00330989,3853.5,3853.3,3.2078]
[1761920644987,3.2078,3854.5,3853.4,0.4673]
[1761920645190,0.025,3854.7,3853.9,3.2078]
[1761920645390,0.025,3854.7,3853.5,3.2078]
[1761920645989,0.56677852,3854.6,3853.5,3.2078]
[1761920646185,0.02804485,3854.7,3853.5,3.2078]
[1761920647189,3.2078,3854.3,3853.5,3.2078]
[1761920647790,3.2078,3854.3,3853.5,3.67509]
[1761920647991,0.02804485,3854.7,3853.9,3.2078]
[1761920648487,0.02804485,3854.7,3854.3,3.2078]
[1761920649193,0.02804485,3854.7,3854.4,0.46719]
[1761920649390,0.02804485,3854.7,3854.5,0.46717]
[1761920649889,3.2078,3856.0,3855.0,0.46711]
[1761920650095,3.2078,3856.4,3855.4,3.2078]
[1761920650297,3.2078,3856.8,3855.8,3.2078]
[1761920650687,3.21103442,3856.8,3855.8,3.2078]
[1761920650889,3.2078,3856.4,3855.8,0.00257976]
[1761920651290,3.2078,3856.4,3855.8,3.21037976]
[1761920651496,3.21103442,3856.8,3856.2,3.2078]
[1761920651893,0.00323442,3856.8,3856.2,3.2078]
[1761920653394,0.00323442,3856.8,3856.6,3.2078]
[1761920654895,0.00323442,3856.8,3856.2,3.2078]
[1761920657391,0.00323442,3856.8,3856.6,3.2078]
[1761920657998,0.00323442,3856.8,3856.2,3.2078]
[1761920658300,0.00323442,3856.8,3856.6,3.2078]
[1761920659497,0.00323442,3856.8,3856.2,3.2078]
[1761920659800,3.21103442,3856.8,3856.2,3.2078]
[1761920659991,3.21103442,3856.8,3855.8,0.00257976]
[1761920661302,3.2078,3856.4,3855.8,0.00257976]
[1761920661503,3.2078,3855.9,3855.8,0.00257976]
[1761920661804,3.2078,3856.3,3855.8,0.00257976]
[1761920662504,3.2078,3855.9,3855.8,0.00257976]
[1761920663006,3.2078,3856.3,3855.8,0.00257976]
[1761920663198,3.2078,3855.9,3855.8,0.00257976]
[1761920664099,3.21103442,3856.8,3855.8,3.21037976]
[1761920664301,3.2078,3856.4,3855.8,3.21037976]
[1761920664806,3.2078,3856.4,3855.8,0.00257976]
[1761920665199,3.21103442,3856.8,3855.8,0.00257976]
[1761920665497,3.21103442,3856.8,3855.9,3.2078]
[1761920665801,3.2078,3856.4,3855.8,0.00257976]
[1761920666004,3.21103442,3856.8,3855.9,3.2078]
[1761920666597,3.2078,3856.4,3855.8,0.00257976]
[1761920667301,3.21103442,3856.8,3855.8,3.21037976]
[1761920668503,3.2078,3856.4,3855.8,3.21037976]
[1761920669207,0.56565524,3856.3,3855.8,3.21037976]
[1761920669408,0.6467695,3856.2,3855.8,3.21037976]
[1761920669607,3.2078,3856.4,3855.8,3.21037976]
[1761920669810,0.64687421,3856.3,3855.8,3.21037976]
[1761920669997,3.2078,3856.4,3855.8,3.21037976]
[1761920670202,0.6468711,3856.3,3855.8,3.21037976]
[1761920670405,3.2078,3856.4,3855.8,3.21037976]
[1761920671118,0.08111235,3856.3,3855.8,3.21037976]
[1761920671312,3.2078,3856.4,3855.8,3.21037976]
[1761920671513,3.2078,3856.5,3855.8,3.21037976]
[1761920671803,0.64754118,3856.4,3855.8,0.00257976]
[1761920671996,0.64754118,3856.3,3855.8,0.00257976]
[1761920672198,0.64754118,3856.2,3855.9,3.2078]
[1761920672397,0.00323442,3856.8,3855.9,3.2078]
[1761920672601,0.64835704,3856.7,3855.9,3.67481]
[1761920672801,0.64835704,3856.6,3855.9,3.67481]
[1761920672998,0.64835704,3856.5,3856.0,0.467]
[1761920673210,0.64835704,3856.4,3855.9,3.2078]
[1761920673512,0.00323442,3856.8,3855.9,3.2078]
[1761920673709,0.64881489,3856.7,3855.9,3.2078]
[1761920673904,0.64881489,3856.6,3855.9,3.2078]
[1761920674103,0.64882509,3856.5,3855.9,3.2078]
[1761920674409,0.64882509,3856.4,3855.9,3.2078]
[1761920674610,0.64882509,3856.3,3855.9,3.2078]
[1761920674811,0.64882509,3856.2,3855.9,3.2078]
[1761920675111,0.64882509,3856.1,3855.9,3.2078]
[1761920675410,0.64970691,3856.0,3855.9,3.2078]
[1761920675802,0.64970691,3856.0,3855.8,0.00257976]
[1761920676002,0.64970691,3855.9,3855.8,0.00257976]
[1761920676808,0.64970691,3855.9,3855.8,3.21037976]
[1761920677806,0.00323442,3856.8,3855.8,3.21037976]
[1761920678004,0.65088269,3856.7,3855.8,3.21037976]
[1761920678216,0.65088269,3856.6,3855.8,3.21037976]
[1761920678415,0.08110344,3856.5,3855.8,3.21037976]
[1761920678628,0.56977925,3856.4,3855.8,3.21037976]
[1761920678818,0.08110344,3856.3,3855.8,3.21037976]
[1761920679112,0.56977925,3856.2,3855.8,3.21037976]
[1761920679315,0.08110344,3856.1,3855.8,3.21037976]
[1761920679519,0.56977925,3856.0,3855.8,3.21037976]
[1761920679710,0.08110344,3855.9,3855.8,3.21037976]
[1761920679912,0.65088269,3855.9,3855.8,3.21037976]
[1761920681314,0.65088269,3855.9,3855.8,3.67739976]
[1761920681709,1.38780984,3856.8,3855.8,3.67739976]
[1761920681907,2.03696116,3856.7,3856.2,3.2078]
[1761920682106,0.65238574,3856.6,3856.2,3.2078]
[1761920682321,0.65238574,3856.5,3856.2,3.2078]
[1761920682618,0.65238574,3856.4,3855.8,3.67738976]
[1761920682808,0.65238574,3856.3,3855.9,0.46701]
[1761920683009,0.65238574,3856.2,3856.0,0.46698]
[1761920683209,1.38780984,3856.8,3856.1,3.2078]
[1761920683411,0.65240057,3856.7,3856.1,3.2078]
[1761920683608,0.65240057,3856.6,3856.1,3.2078]
[1761920683807,0.65240057,3856.5,3856.1,3.2078]
[1761920684022,0.65240057,3856.4,3856.1,3.2078]
[1761920684320,0.65240057,3856.3,3856.1,3.2078]
[1761920684620,0.65240057,3856.2,3856.1,3.2078]
[1761920687422,0.65240057,3856.2,3856.1,3.67478]
[1761920687623,0.57129989,3856.2,3856.1,3.67478]
[1761920688018,0.57129989,3856.7,3856.1,3.67478]
[1761920688219,0.65239662,3856.6,3856.5,3.2078]
[1761920691018,0.65239662,3856.6,3856.5,3.67474]
[1761920691325,0.00323442,3856.8,3856.5,3.2078]
[1761920692021,0.57110482,3856.7,3856.5,3.2078]
[1761920692215,0.57110482,3856.6,3856.5,3.2078]
[1761920692522,0.57110482,3856.7,3856.5,3.2078]
[1761920692722,0.57110482,3856.6,3856.5,3.2078]
[1761920693116,0.57110482,3856.7,3856.5,3.2078]
[1761920693423,0.57110482,3856.6,3856.5,3.2078]
[1761920693630,0.57110482,3856.7,3856.5,3.2078]
[1761920694816,0.00323442,3856.8,3856.5,3.2078]
[1761920696821,0.57106063,3856.7,3856.5,3.2078]
[1761920697026,0.00323442,3856.8,3856.5,3.2078]
[1761920697220,0.57106397,3856.7,3856.5,3.2078]
[1761920697523,0.00323442,3856.8,3856.5,3.2078]
[1761920697725,0.57112608,3856.7,3856.5,3.2078]
[1761920697924,0.00323442,3856.8,3856.5,3.2078]
[1761920698125,0.57112608,3856.7,3856.5,3.2078]
[1761920698328,0.00323442,3856.8,3856.5,3.2078]
[1761920698628,0.57110809,3856.7,3856.5,3.2078]
[1761920698815,0.00323442,3856.8,3856.5,3.2078]
[1761920699020,0.57111242,3856.7,3856.5,3.2078]
[1761920699215,0.00323442,3856.8,3856.5,3.2078]
[1761920699428,0.57112667,3856.7,3856.0,3.2078]
[1761920699621,0.57112667,3856.6,3856.0,3.2078]
[1761920699826,0.00323442,3856.8,3856.0,3.2078]
[1761920700025,0.57123775,3856.7,3856.0,3.2078]
[1761920700323,0.57123775,3856.6,3856.0,3.2078]
[1761920700628,0.57123775,3856.5,3856.0,3.2078]
[1761920700826,0.00323442,3856.8,3856.0,3.2078]
[1761920701027,0.57127057,3856.7,3856.0,3.2078]
[1761920701226,0.57127057,3856.6,3856.0,3.2078]
[1761920701428,0.57127057,3856.5,3856.0,3.2078]
[1761920701723,0.00323442,3856.8,3856.0,3.2078]
[1761920701914,0.57132619,3856.7,3856.0,3.2078]
[1761920702121,0.57132619,3856.6,3856.0,3.2078]
[1761920702316,0.57132619,3856.5,3856.0,3.2078]
[1761920702521,0.57132619,3856.4,3856.0,3.2078]
[1761920702718,0.00323442,3856.8,3856.0,3.2078]
[1761920702921,0.57138611,3856.7,3856.0,3.2078]
[1761920703128,0.57138611,3856.6,3856.0,3.2078]
[1761920703429,0.57138611,3856.5,3856.0,3.2078]
[1761920703631,0.00323442,3856.8,3856.0,3.67479]
[1761920703829,0.57139784,3856.7,3856.0,3.2078]
[1761920704023,0.57139784,3856.6,3856.0,3.2078]
[1761920704229,0.57139784,3856.5,3856.0,3.2078]
[1761920704430,0.00323442,3856.8,3856.0,3.2078]
[1761920704631,0.57141741,3856.7,3856.0,3.2078]
[1761920704832,0.57141741,3856.6,3856.0,3.2078]
[1761920705134,0.57141741,3856.5,3856.0,3.2078]
[1761920705337,0.57141741,3856.4,3856.0,3.2078]
[1761920705632,0.00323442,3856.8,3856.0,3.2078]
[1761920705933,0.5714356,3856.7,3856.0,3.2078]
[1761920706137,0.5714356,3856.6,3856.0,3.2078]
[1761920706330,0.5714356,3856.5,3856.0,3.2078]
[1761920706633,0.5714356,3856.4,3856.0,3.2078]
[1761920706834,0.5714356,3856.3,3856.0,3.2078]
[1761920707033,0.57154132,3856.2,3856.0,3.2078]
[1761920707233,0.57154132,3856.1,3856.0,3.2078]
[1761920707532,0.57154132,3856.1,3855.8,0.00257976]
[1761920707728,0.00323442,3856.8,3855.8,0.00257976]
[1761920707729,3.2078,3855.9,3855.8,0.00257976]
[1761920708034,3.77934132,3855.9,3855.8,0.00257976]
[1761920708527,3.86046496,3855.9,3855.8,0.00257976]
[1761920709037,0.57154132,3855.9,3855.8,0.00257976]
[1761920709237,3.2078,3856.4,3855.8,0.00257976]
[1761920709441,0.57021013,3856.3,3855.8,0.00257976]
[1761920709641,0.57021013,3856.2,3855.8,0.00257976]
[1761920709829,3.2078,3856.4,3855.8,0.00257976]
[1761920710029,0.57021453,3856.3,3855.8,0.00257976]
[1761920710240,0.57021453,3856.2,3855.8,0.00257976]
[1761920710433,0.57021453,3856.1,3855.9,3.2078]
[1761920710731,3.2078,3856.4,3855.9,3.2078]
[1761920710931,0.5701653,3856.3,3855.9,3.2078]
[1761920711135,0.00323442,3856.8,3855.9,3.2078]
[1761920711337,0.00323442,3856.8,3856.4,3.2078]
[1761920711933,0.00323442,3856.8,3856.6,0.46691]
[1761920712436,0.00323442,3856.8,3856.4,3.2078]
[1761920712636,0.00323442,3856.8,3856.4,4.59804943]
[1761920712837,0.00323442,3856.8,3856.4,3.2078]
[1761920713141,3.21103442,3856.8,3855.9,4.59804943]
[1761920713440,0.57011968,3856.7,3855.9,3.2078]
[1761920713629,0.00323442,3856.8,3856.4,3.2078]
[1761920714636,0.00323442,3856.8,3856.4,3.67474]
[1761920714826,0.00323442,3856.8,3856.4,3.2078]
[1761920715031,0.00323442,3856.8,3856.7,0.46691]
[1761920715227,3.2078,3858.1,3857.1,0.46685]
[1761920715439,0.56990073,3858.0,3857.4,3.2078]
[1761920715642,0.56990073,3857.9,3857.8,3.2078]
[1761920715832,3.2078,3858.6,3857.8,3.2078]
[1761920716153,0.56976071,3858.5,3857.8,3.2078]
[1761920716337,3.21057686,3858.6,3857.8,3.2078]
[1761920716638,0.56930376,3858.5,3857.8,3.2078]
[1761920716841,0.56930376,3858.4,3857.8,3.2078]
[1761920717029,0.56930376,3858.3,3857.8,3.2078]
[1761920717230,3.21057686,3858.6,3857.8,3.2078]
[1761920717437,3.21057686,3858.6,3857.9,0.46676]
[1761920717739,0.00277686,3858.6,3858.2,3.2078]
[1761920718929,3.21057686,3858.6,3857.8,3.2078]
[1761920719330,0.00277686,3858.6,3857.8,3.2078]
[1761920719535,0.00277686,3858.6,3858.2,3.2078]
[1761920721233,0.00277686,3858.6,3858.4,0.4667]
[1761920721440,0.00277686,3858.6,3858.2,3.2078]
[1761920721740,0.00277686,3858.6,3858.4,0.46669]
[1761920722240,0.00277686,3858.6,3858.4,0.4667]
[1761920724044,0.00277686,3858.6,3858.4,0.46669]
[1761920724833,0.00277686,3858.6,3858.2,3.2078]
[1761920725744,3.2078,3858.3,3857.4,3.2078]
[1761920726043,3.2078,3857.9,3856.6,3.2078]
[1761920726746,3.2078,3857.5,3856.2,3.2078]
[1761920727046,3.2078,3857.5,3856.6,3.2078]
[1761920727641,3.2078,3857.1,3856.2,3.2078]
[1761920728342,3.2078,3857.5,3856.6,3.2078]
[1761920728649,3.2078,3858.1,3857.0,3.2078]
[1761920729451,3.2078,3857.3,3856.4,3.2078]
[1761920730042,3.2078,3857.3,3855.9,6.794]
[1761920730043,3.2078,3856.9,3856.0,3.2078]
[1761920731252,3.2078,3857.5,3856.5,3.2078]
[1761920734447,3.2078,3857.9,3856.9,3.2078]
[1761920734644,3.2078,3857.9,3857.1,0.46685]
[1761920734843,3.2078,3858.5,3857.3,3.2078]
[1761920735048,3.2078,3858.5,3857.7,3.2078]
[1761920735449,0.00277686,3858.6,3858.2,3.2078]
[1761920736552,3.2078,3858.5,3857.7,3.2078]
[1761920736756,0.00277686,3858.6,3858.1,3.2078]
[1761920740140,0.00277686,3858.6,3858.5,3.2078]
[1761920744354,0.00277686,3858.6,3857.7,3.2078]
[1761920745659,0.00277686,3858.6,3858.3,3.2078]
[1761920747055,0.00277686,3858.6,3857.9,3.2078]
[1761920747963,0.00277686,3858.6,3858.3,3.2078]
[1761920758965,0.00277686,3858.6,3857.9,3.2078]
[1761920760462,0.00277686,3858.6,3857.9,3.67455]
[1761920760862,0.00277686,3858.6,3857.9,3.2078]
[1761920761175,0.00277686,3858.6,3857.9,3.67455]
[1761920761468,0.00277686,3858.6,3857.9,3.2078]
[1761920762168,0.56982082,3858.5,3857.9,3.2078]
[1761920762369,0.56982082,3858.4,3857.9,3.2078]
[1761920762570,0.57020029,3858.3,3857.8,3.2078]
[1761920762773,0.57023927,3858.2,3857.4,3.2078]
[1761920762965,3.2078,3857.9,3857.0,3.2078]
[1761920763266,0.57023927,3857.8,3857.0,3.2078]
[1761920763770,3.2078,3858.3,3857.4,3.2078]
[1761920763966,0.57054163,3858.2,3857.4,3.2078]
[1761920764166,0.00277686,3858.6,3857.8,3.2078]
[1761920764365,0.5710484,3858.5,3858.2,3.2078]
[1761920764672,0.00277686,3858.6,3858.2,3.2078]
[1761920764872,0.00277686,3858.6,3858.3,0.46669]
[1761920765067,0.00277686,3858.6,3858.4,0.46669]
[1761920765266,0.00277686,3858.6,3858.2,3.2078]
[1761920768279,0.57076357,3858.5,3858.2,3.2078]
[1761920768475,0.57076357,3858.4,3858.2,3.2078]
[1761920768678,0.00277686,3858.6,3858.2,3.2078]
[1761920768870,0.57076927,3858.5,3858.2,3.2078]
[1761920769069,0.57077825,3858.4,3858.2,3.2078]
[1761920769279,0.57078663,3858.3,3857.8,3.2078]
[1761920769473,0.57078663,3858.2,3857.8,3.2078]
[1761920769782,0.00277686,3858.6,3857.8,3.2078]
[1761920769979,0.57078615,3858.5,3857.8,3.2078]
[1761920770174,0.57078615,3858.4,3857.8,3.2078]
[1761920770382,0.57078615,3858.3,3857.8,3.2078]
[1761920770572,0.57078615,3858.2,3857.8,3.2078]
[1761920770772,0.57078615,3858.1,3857.8,3.2078]
[1761920770972,0.00277686,3858.6,3857.8,3.2078]
[1761920771275,0.57075848,3858.5,3857.8,3.2078]
[1761920771481,0.65182782,3858.4,3857.8,3.2078]
[1761920771680,0.57075848,3858.3,3857.8,3.2078]
[1761920771882,0.57075848,3858.2,3857.8,3.2078]
[1761920772082,0.57075848,3858.1,3857.8,3.2078]
[1761920772282,0.57075848,3858.1,3857.2,1.39024943]
[1761920772283,0.57075848,3858.0,3857.4,3.2078]
[1761920772478,0.00277686,3858.6,3856.6,5.282]
[1761920772479,3.77855848,3857.9,3857.0,4.59804943]
[1761920772678,0.57075848,3857.8,3857.0,3.2078]
[1761920776391,3.2078,3857.5,3856.6,3.2078]
[1761920776694,0.57075848,3857.4,3856.6,3.2078]
[1761920776886,0.57075848,3857.3,3856.6,3.2078]
[1761920777086,3.2078,3857.5,3856.6,3.2078]
[1761920777087,0.57075848,3857.2,3856.6,3.2078]
[1761920777282,0.57075848,3857.1,3856.6,3.2078]
[1761920777490,3.2078,3857.5,3856.6,3.2078]
[1761920777689,0.56961658,3857.4,3856.6,3.2078]
[1761920777897,0.56961658,3857.3,3856.6,3.2078]
[1761920778098,0.56961658,3857.2,3856.6,3.2078]
[1761920778300,3.2078,3857.9,3857.0,3.2078]
[1761920778496,3.2078,3857.3,3856.6,3.2078]
[1761920778692,0.56938286,3857.2,3856.6,3.2078]
[1761920778888,3.2078,3856.8,3856.2,3.2078]
[1761920779090,0.569462,3856.7,3856.2,3.2078]
[1761920779285,0.569462,3856.6,3856.2,3.2078]
[1761920779590,3.2078,3856.8,3856.2,3.2078]
[1761920779789,0.56901943,3856.7,3856.2,3.2078]
[1761920779991,0.56901943,3856.6,3856.2,3.2078]
[1761920780197,3.2078,3856.8,3856.2,3.2078]
[1761920780396,0.56902397,3856.7,3856.2,3.2078]
[1761920780597,3.2078,3856.8,3856.2,3.2078]
[1761920780797,0.56871308,3856.7,3856.2,3.2078]
[1761920780998,0.56871554,3856.6,3856.2,3.2078]
[1761920781199,1.8114,3856.7,3856.2,3.2078]
[1761920781792,1.8114,3856.7,3856.6,3.2078]
[1761920783087,1.8114,3856.7,3856.1,3.2078]
[1761920784798,1.8114,3856.7,3856.5,3.2078]
[1761920788591,1.8114,3856.7,3856.5,3.67471]
[1761920788797,1.8114,3856.7,3856.5,3.2078]
[1761920789906,1.8114,3856.7,3856.5,3.67472]
[1761920790707,0.00277686,3858.6,3857.2,0.46683]
[1761920790897,0.00277686,3858.6,3857.7,3.2078]
[1761920792696,3.2078,3858.4,3857.7,3.2078]
[1761920792892,3.2078,3858.0,3857.2,3.2078]
[1761920793699,3.2078,3858.4,3857.2,3.2078]
[1761920794010,0.56845884,3858.3,3857.2,3.2078]
[1761920794306,0.56845884,3858.2,3857.2,3.2078]
[1761920794507,3.2078,3858.4,3857.2,3.2078]
[1761920794709,0.56852825,3858.3,3857.2,3.2078]
[1761920794903,0.56852825,3858.2,3857.2,3.2078]
[1761920795106,3.2078,3858.4,3857.2,3.2078]
[1761920795410,0.56868238,3858.3,3857.2,3.2078]
[1761920795603,3.2078,3858.4,3857.2,3.2078]
[1761920795805,0.56869778,3858.3,3857.2,3.2078]
[1761920796106,3.2078,3858.4,3857.2,3.2078]
[1761920796306,0.56869485,3858.3,3857.2,3.2078]
[1761920796507,0.56869485,3858.2,3857.2,3.2078]
[1761920796709,3.2078,3858.4,3857.2,3.2078]
[1761920796906,0.56891679,3858.3,3857.2,3.2078]
[1761920797098,3.2078,3858.4,3857.6,3.2078]
[1761920797303,0.56890052,3858.3,3857.6,3.2078]
[1761920797607,3.2078,3858.4,3857.6,3.2078]
[1761920798004,0.56908765,3858.3,3857.6,3.2078]
[1761920798311,0.56885535,3858.2,3857.6,3.2078]
[1761920798509,3.2078,3858.4,3857.6,3.2078]
[1761920798713,0.56885588,3858.3,3857.6,3.2078]
[1761920799010,0.56885588,3858.2,3857.6,3.2078]
[1761920799211,3.2078,3858.4,3857.6,3.2078]
[1761920799412,0.56892172,3858.3,3857.6,3.2078]
[1761920799608,3.2078,3858.4,3857.6,3.2078]
[1761920799811,0.56891895,3858.3,3857.6,3.2078]
[1761920800109,0.56892073,3858.2,3857.6,3.2078]
[1761920800411,3.2078,3858.4,3857.6,3.2078]
[1761920800711,0.56896492,3858.3,3857.6,3.2078]
[1761920800907,0.56896492,3858.2,3857.6,3.2078]
[1761920801106,3.2078,3858.0,3856.5,1.38226817]
[1761920801307,3.2078,3856.7,3855.5,3.2078]
[1761920801521,3.2078,3856.2,3855.5,3.2078]
[1761920801716,0.56934854,3856.1,3855.5,3.2078]
[1761920802112,0.56934854,3856.0,3855.5,3.2078]
[1761920802313,0.65046881,3855.9,3855.1,3.2078]
[1761920802613,0.65272479,3855.9,3854.7,3.2078]
[1761920802912,0.65046881,3855.8,3854.7,3.2078]
[1761920803108,0.00225598,3855.9,3855.1,3.2078]
[1761920803513,0.00225598,3855.9,3855.6,3.2078]
[1761920803713,0.00225598,3855.9,3855.6,3.21006394]
[1761920804920,3.2078,3857.0,3856.0,0.46697]
[1761920805119,0.56897546,3856.9,3856.2,3.2078]
[1761920805312,3.2078,3857.0,3856.2,3.2078]
[1761920805514,0.56894285,3856.9,3856.2,3.2078]
[1761920805813,0.00333351,3856.9,3856.2,3.2078]
[1761920806810,0.00333351,3856.9,3856.6,3.2078]
[1761920810417,0.00333351,3856.9,3856.2,3.2078]
[1761920812812,0.65030501,3856.8,3856.1,3.2078]
[1761920813029,0.00333351,3856.9,3856.1,3.2078]
[1761920816126,0.00333351,3856.9,3855.7,3.2078]
[1761920816127,0.65031861,3856.8,3855.7,3.2078]
[1761920816329,3.85817741,3856.7,3855.7,3.2078]
[1761920816526,0.00333351,3856.9,3856.2,3.2078]
[1761920817027,0.00333351,3856.9,3856.6,3.2078]
[1761920819126,0.6501717,3856.8,3855.7,3.2078]
[1761920819329,0.6501717,3856.7,3855.7,3.2078]
[1761920819530,3.21113351,3856.9,3855.7,3.2078]
[1761920819531,0.6501717,3856.6,3855.7,3.2078]
[1761920819721,0.08109752,3856.5,3855.7,3.2078]
[1761920819923,12.68013351,3856.9,3855.7,3.2078]
[1761920820125,0.08110606,3856.8,3856.1,3.2078]
[1761920820326,3.21113351,3856.9,3856.3,0.46695]
[1761920820525,3.21113351,3856.9,3856.3,0.46694]
[1761920820727,3.21113351,3856.9,3856.1,3.2078]
[1761920820928,0.00333351,3856.9,3856.6,3.2078]
[1761920821732,0.00333351,3856.9,3856.6,3.67471]
[1761920821934,0.00333351,3856.9,3856.6,3.2078]
[1761920824942,0.00333351,3856.9,3856.6,3.67471]
[1761920825146,0.00333351,3856.9,3856.8,0.46689]
[1761920825643,0.00333351,3856.9,3856.6,3.2078]
[1761920826030,0.00333351,3856.9,3856.8,0.46689]
[1761920828348,3.2078,3858.4,3856.8,1.38317019]
[1761920828538,3.2078,3858.8,3858.1,0.46673]
[1761920828846,3.2078,3859.2,3858.2,3.2078]
[1761920829042,0.65999129,3859.1,3858.2,3.2078]
[1761920829241,0.65999129,3859.0,3858.2,3.2078]
[1761920829444,3.2078,3858.8,3857.8,3.2078]
[1761920829640,0.00319815,3859.1,3857.8,3.2078]
[1761920829641,3.2078,3858.4,3857.8,3.2078]
[1761920829949,0.65981954,3858.3,3857.8,3.2078]
[1761920830149,0.65981954,3858.2,3857.4,3.2078]
[1761920830351,3.2078,3858.0,3857.4,3.2078]
[1761920830548,3.2078,3857.5,3856.9,3.2078]
[1761920830739,0.65981954,3857.4,3856.9,3.2078]
[1761920830944,0.65981954,3857.3,3856.9,3.2078]
[1761920831141,0.65981954,3857.2,3856.9,3.2078]
[1761920831344,3.86761954,3857.1,3856.5,3.2078]
[1761920831551,0.6600936,3857.0,3856.5,3.2078]
[1761920831846,3.2078,3857.1,3856.5,3.2078]
[1761920832044,0.08109363,3857.0,3856.5,3.2078]
[1761920832244,3.2078,3857.1,3856.5,3.2078]
[1761920832450,0.66030642,3857.0,3856.5,3.2078]
[1761920832651,3.2078,3857.1,3856.5,3.2078]
[1761920832851,0.66030643,3857.0,3856.5,3.2078]
[1761920833047,3.2078,3857.1,3856.5,3.2078]
[1761920833350,0.66047313,3857.0,3856.5,3.2078]
[1761920833554,4.59237542,3858.0,3856.9,3.2078]
[1761920833753,0.66045295,3857.9,3857.3,3.2078]
[1761920834053,0.66045295,3857.8,3857.3,3.2078]
[1761920834249,0.66045295,3857.7,3857.2,0.46684]
[1761920834445,3.2078,3858.0,3856.9,3.2078]
[1761920834647,0.66051646,3857.9,3856.9,3.2078]
[1761920834854,3.2078,3858.0,3856.9,3.2078]
[1761920834855,0.66051646,3857.8,3857.3,3.2078]
[1761920835146,3.2078,3858.0,3857.3,3.2078]
[1761920835352,0.6604779,3857.9,3857.3,3.2078]
[1761920835651,3.2078,3858.0,3857.3,3.2078]
[1761920836451,3.2078,3858.4,3857.3,3.2078]
[1761920836653,0.66034299,3858.3,3857.3,3.2078]
[1761920836855,0.66034299,3858.2,3857.3,3.2078]
[1761920837155,0.66034299,3858.1,3857.3,3.2078]
[1761920837356,3.2078,3858.4,3857.3,3.2078]
[1761920837357,0.66034299,3858.0,3857.3,3.2078]
[1761920837546,0.08107425,3857.9,3857.3,3.2078]
[1761920837858,3.2078,3858.4,3857.3,3.2078]
[1761920838047,0.66027575,3858.3,3857.3,3.2078]
[1761920838248,0.66027575,3858.2,3857.3,3.2078]
[1761920838447,0.66027575,3858.1,3857.3,3.2078]
[1761920838656,0.66027575,3858.0,3857.3,3.2078]
[1761920838845,3.2078,3858.4,3857.3,3.2078]
[1761920839050,0.66020987,3858.3,3857.3,3.2078]
[1761920839251,0.66020987,3858.2,3857.3,3.2078]
[1761920839450,3.2078,3858.0,3857.3,3.2078]
[1761920839750,0.66020987,3857.9,3857.3,3.2078]
[1761920839955,0.66020987,3857.8,3857.3,3.2078]
[1761920840156,0.66020987,3857.7,3857.3,3.2078]
[1761920840454,0.66020987,3857.6,3857.3,3.2078]
[1761920840656,0.66020987,3857.5,3857.3,3.2078]
[1761920840854,0.08107302,3857.4,3856.4,3.2078]
[1761920841055,0.66030801,3857.4,3856.4,3.2078]
[1761920841255,0.66030801,3857.3,3856.4,3.2078]
[1761920841448,3.2078,3857.5,3856.4,3.2078]
[1761920841449,0.66030801,3857.2,3856.4,3.2078]
[1761920841651,0.66030801,3857.1,3856.4,3.2078]
[1761920841852,3.2078,3857.5,3856.4,3.2078]
[1761920842051,0.66040687,3857.4,3856.4,3.2078]
[1761920842251,0.66040687,3857.3,3856.4,3.2078]
[1761920842453,0.66040687,3857.2,3856.4,3.67474]
[1761920842659,0.66040687,3857.1,3856.4,3.67474]
[1761920842861,3.2078,3857.5,3856.5,0.46693]
[1761920843053,0.66041698,3857.4,3856.5,0.46693]
[1761920843360,0.66041698,3857.3,3856.8,3.2078]
[1761920843560,0.66041698,3857.2,3856.8,3.2078]
[1761920843859,3.2078,3857.9,3856.8,3.2078]
[1761920844061,0.66044578,3857.8,3856.8,3.2078]
[1761920844365,0.66044578,3857.7,3856.8,3.67469]
[1761920844561,0.66044578,3857.6,3856.8,3.67469]
[1761920844860,3.2078,3857.9,3856.8,3.2078]
[1761920845058,0.66047075,3857.8,3856.8,3.2078]
[1761920845258,0.66047075,3857.7,3856.8,3.2078]
[1761920845450,0.66047075,3857.6,3856.8,3.2078]
[1761920845651,0.66047075,3857.5,3856.8,3.67469]
[1761920845854,3.2078,3857.9,3856.8,3.67469]